[Event "Early-Titled-Tuesday-Blitz-March-05-2024"]
[Site "Chess.com"]
[Date "2024.03.05"]
[Round "10"]
[White "AndresDelgado77"]
[Black "ritanovikova"]
[Result "1/2-1/2"]
[WhiteElo "2288"]
[BlackElo "2188"]
[TimeControl "180+1"]
[EndTime "10:00:32 PST"]
[Termination "Game drawn by repetition"]

1. e4 {[%clk 0:02:59.6]} 1... d5 {[%clk 0:02:59.1]} 2. Nc3 {[%clk 0:02:57.8]}
2... dxe4 {[%clk 0:02:59.2]} 3. Nxe4 {[%clk 0:02:57.6]} 3... Bf5 {[%clk
0:02:59.8]} 4. Ng3 {[%clk 0:02:53.2]} 4... Bg6 {[%clk 0:03:00]} 5. h4 {[%clk
0:02:52.5]} 5... h6 {[%clk 0:02:58.7]} 6. Nf3 {[%clk 0:02:52.7]} 6... Nf6 {[%clk
0:02:58.2]} 7. Ne5 {[%clk 0:02:51.6]} 7... Bh7 {[%clk 0:02:55.9]} 8. Bc4 {[%clk
0:02:51.3]} 8... e6 {[%clk 0:02:56.2]} 9. Qe2 {[%clk 0:02:51.4]} 9... Bg8 {[%clk
0:02:35]} 10. O-O {[%clk 0:02:35.6]} 10... Nbd7 {[%clk 0:02:33.3]} 11. d4 {[%clk
0:02:30.6]} 11... Nxe5 {[%clk 0:02:31.2]} 12. dxe5 {[%clk 0:02:30.2]} 12... Nd5
{[%clk 0:02:28.8]} 13. Rd1 {[%clk 0:02:28.2]} 13... c6 {[%clk 0:02:27.2]} 14.
Bxd5 {[%clk 0:02:23]} 14... exd5 {[%clk 0:02:13.1]} 15. c4 {[%clk 0:02:21.4]}
15... Qxh4 {[%clk 0:02:07.3]} 16. cxd5 {[%clk 0:02:21]} 16... Bc5 {[%clk
0:02:07]} 17. dxc6 {[%clk 0:02:15.1]} 17... Qxg3 {[%clk 0:01:54.9]} 18. cxb7
{[%clk 0:02:14.1]} 18... Qxf2+ {[%clk 0:01:49]} 19. Qxf2 {[%clk 0:02:13.4]}
19... Bxf2+ {[%clk 0:01:48.5]} 20. Kxf2 {[%clk 0:02:13.9]} 20... Rb8 {[%clk
0:01:48.2]} 21. Be3 {[%clk 0:02:00.9]} 21... Rxb7 {[%clk 0:01:46.9]} 22. b3
{[%clk 0:01:58.8]} 22... Bh7 {[%clk 0:01:43.5]} 23. Rac1 {[%clk 0:01:58]} 23...
O-O {[%clk 0:01:42.5]} 24. Rd6 {[%clk 0:01:50.5]} 24... Re8 {[%clk 0:01:39.1]}
25. Bd4 {[%clk 0:01:49.1]} 25... Bf5 {[%clk 0:01:37.3]} 26. Rcc6 {[%clk
0:01:45.3]} 26... Re6 {[%clk 0:01:30.6]} 27. Ra6 {[%clk 0:01:39.9]} 27... Ree7
{[%clk 0:01:23.8]} 28. Rd8+ {[%clk 0:01:38.8]} 28... Kh7 {[%clk 0:01:23.8]} 29.
Ra8 {[%clk 0:01:38.9]} 29... Rbd7 {[%clk 0:01:17.7]} 30. R6xa7 {[%clk
0:01:33.9]} 30... Be4 {[%clk 0:00:54.5]} 31. Rxd7 {[%clk 0:01:31.6]} 31... Rxd7
{[%clk 0:00:55.4]} 32. Ra4 {[%clk 0:01:31.7]} 32... Bc6 {[%clk 0:00:53.7]} 33.
Rb4 {[%clk 0:01:31.7]} 33... Be4 {[%clk 0:00:39.4]} 34. g3 {[%clk 0:01:28.1]}
34... Rc7 {[%clk 0:00:39.6]} 35. Ke3 {[%clk 0:01:25.8]} 35... Bb1 {[%clk
0:00:39.2]} 36. a4 {[%clk 0:01:22.9]} 36... Kg6 {[%clk 0:00:37.1]} 37. Kf4
{[%clk 0:01:20.2]} 37... Rc1 {[%clk 0:00:32.2]} 38. Rb6+ {[%clk 0:01:19.1]}
38... Kh5 {[%clk 0:00:31.5]} 39. b4 {[%clk 0:01:15.5]} 39... Rf1+ {[%clk
0:00:29.7]} 40. Ke3 {[%clk 0:01:13.4]} 40... Kg4 {[%clk 0:00:27.4]} 41. Ke2
{[%clk 0:01:05.7]} 41... Rf3 {[%clk 0:00:26.1]} 42. Bf2 {[%clk 0:01:03]} 42...
Ra3 {[%clk 0:00:21.3]} 43. a5 {[%clk 0:01:01]} 43... Ra2+ {[%clk 0:00:21.2]} 44.
Ke3 {[%clk 0:00:56.5]} 44... Ra3+ {[%clk 0:00:21.3]} 45. Ke2 {[%clk 0:00:49.2]}
45... Ra2+ {[%clk 0:00:21.4]} 46. Ke1 {[%clk 0:00:47]} 46... Kf3 {[%clk
0:00:21.2]} 47. Bd4 {[%clk 0:00:42]} 47... Re2+ {[%clk 0:00:18.8]} 48. Kd1
{[%clk 0:00:41.5]} 48... Re4 {[%clk 0:00:19]} 49. Rd6 {[%clk 0:00:39.7]} 49...
Bd3 {[%clk 0:00:14.3]} 50. Kd2 {[%clk 0:00:37.5]} 50... Bb5 {[%clk 0:00:13.9]}
51. Kc3 {[%clk 0:00:36.4]} 51... Re1 {[%clk 0:00:12.3]} 52. Rb6 {[%clk
0:00:35.3]} 52... Be2 {[%clk 0:00:10.7]} 53. a6 {[%clk 0:00:33.9]} 53... Ra1
{[%clk 0:00:10.9]} 54. b5 {[%clk 0:00:31.8]} 54... Ra3+ {[%clk 0:00:11.2]} 55.
Kb4 {[%clk 0:00:31.6]} 55... Ra2 {[%clk 0:00:10.8]} 56. Rb7 {[%clk 0:00:28.8]}
56... Ke4 {[%clk 0:00:10.3]} 57. Bc3 {[%clk 0:00:25.9]} 57... Kd5 {[%clk
0:00:08.1]} 58. Rd7+ {[%clk 0:00:22.5]} 58... Ke6 {[%clk 0:00:07.9]} 59. Rd6+
{[%clk 0:00:22.5]} 59... Ke7 {[%clk 0:00:08.2]} 60. Rd2 {[%clk 0:00:20.1]} 60...
Rxd2 {[%clk 0:00:06.6]} 61. Bxd2 {[%clk 0:00:20]} 61... Kd7 {[%clk 0:00:05.9]}
62. Kc5 {[%clk 0:00:19.9]} 62... Kc7 {[%clk 0:00:05.5]} 63. Ba5+ {[%clk
0:00:19.2]} 63... Kb8 {[%clk 0:00:05.6]} 64. Kb6 {[%clk 0:00:18.5]} 64... Ka8
{[%clk 0:00:05.3]} 65. Bb4 {[%clk 0:00:18.6]} 65... Bd3 {[%clk 0:00:05.1]} 66.
Bf8 {[%clk 0:00:18.1]} 66... g6 {[%clk 0:00:05]} 67. Bxh6 {[%clk 0:00:17.9]}
67... Be2 {[%clk 0:00:05.1]} 68. Be3 {[%clk 0:00:16.6]} 68... Bd3 {[%clk
0:00:05.3]} 69. Ka5 {[%clk 0:00:16.3]} 69... Be4 {[%clk 0:00:04]} 70. b6 {[%clk
0:00:16.2]} 70... Kb8 {[%clk 0:00:04]} 71. Bc5 {[%clk 0:00:15.7]} 71... Ka8
{[%clk 0:00:04.2]} 72. b7+ {[%clk 0:00:13.8]} 72... Bxb7 {[%clk 0:00:04.3]} 73.
axb7+ {[%clk 0:00:14]} 73... Kxb7 {[%clk 0:00:05.2]} 74. Kb4 {[%clk 0:00:13.3]}
74... Kc6 {[%clk 0:00:06.1]} 75. Bd6 {[%clk 0:00:13]} 75... Kd7 {[%clk 0:00:07]}
76. Kc5 {[%clk 0:00:13]} 76... Ke6 {[%clk 0:00:06.3]} 77. Kd4 {[%clk 0:00:12.1]}
77... f6 {[%clk 0:00:06.3]} 78. exf6 {[%clk 0:00:10.6]} 78... Kxd6 {[%clk
0:00:06.5]} 79. g4 {[%clk 0:00:11]} 79... g5 {[%clk 0:00:06.5]} 80. f7 {[%clk
0:00:10]} 80... Ke7 {[%clk 0:00:06.8]} 81. Ke5 {[%clk 0:00:10.4]} 81... Kxf7
{[%clk 0:00:07.2]} 82. Kf5 {[%clk 0:00:10.9]} 82... Kf8 {[%clk 0:00:06.4]} 83.
Kf6 {[%clk 0:00:10.2]} 83... Kg8 {[%clk 0:00:05.7]} 84. Kg6 {[%clk 0:00:10]}
84... Kf8 {[%clk 0:00:06.2]} 85. Kxg5 {[%clk 0:00:10.6]} 85... Kg7 {[%clk
0:00:06.6]} 86. Kf5 {[%clk 0:00:10.4]} 86... Kf7 {[%clk 0:00:06.5]} 87. Kg5
{[%clk 0:00:11.2]} 87... Kg7 {[%clk 0:00:05.5]} 88. Kh5 {[%clk 0:00:12.1]} 88...
Kh7 {[%clk 0:00:05.7]} 89. g5 {[%clk 0:00:13]} 89... Kg7 {[%clk 0:00:04.8]} 90.
g6 {[%clk 0:00:13]} 90... Kg8 {[%clk 0:00:05.2]} 91. Kg5 {[%clk 0:00:12.7]}
91... Kg7 {[%clk 0:00:05]} 92. Kf5 {[%clk 0:00:13.6]} 92... Kg8 {[%clk
0:00:05.2]} 93. Ke6 {[%clk 0:00:14.2]} 93... Kg7 {[%clk 0:00:05.4]} 94. Kf5
{[%clk 0:00:14.6]} 94... Kg8 {[%clk 0:00:05.8]} 95. Kf6 {[%clk 0:00:15.2]} 95...
Kf8 {[%clk 0:00:06.2]} 96. Kg5 {[%clk 0:00:15.5]} 96... Kg8 {[%clk 0:00:06.3]}
97. Kh5 {[%clk 0:00:16.4]} 97... Kg7 {[%clk 0:00:06.5]} 98. Kg5 {[%clk
0:00:16.9]} 98... Kg8 {[%clk 0:00:06.9]} 99. Kh6 {[%clk 0:00:17.3]} 99... Kh8
{[%clk 0:00:07.3]} 100. Kg5 {[%clk 0:00:17.6]} 100... Kg7 {[%clk 0:00:07.8]}
101. Kf5 {[%clk 0:00:17.9]} 1/2-1/2

[Event "Early-Titled-Tuesday-Blitz-March-05-2024"]
[Site "Chess.com"]
[Date "2024.03.05"]
[Round "10"]
[White "SahibSinghKnight"]
[Black "Neijin"]
[Result "1/2-1/2"]
[WhiteElo "2588"]
[BlackElo "2722"]
[TimeControl "180+1"]
[EndTime "10:00:55 PST"]
[Termination "Game drawn - insufficient material"]

1. e4 {[%clk 0:02:58.7]} 1... e5 {[%clk 0:03:00.3]} 2. Nf3 {[%clk 0:02:58.3]}
2... Nc6 {[%clk 0:03:01]} 3. Bb5 {[%clk 0:02:58.8]} 3... Nf6 {[%clk 0:03:01.6]}
4. O-O {[%clk 0:02:58.5]} 4... Nxe4 {[%clk 0:03:02.2]} 5. d4 {[%clk 0:02:58.9]}
5... Nd6 {[%clk 0:03:02.6]} 6. Bxc6 {[%clk 0:02:52.8]} 6... dxc6 {[%clk
0:03:03.5]} 7. dxe5 {[%clk 0:02:53.7]} 7... Nf5 {[%clk 0:03:04]} 8. Qxd8+ {[%clk
0:02:54.3]} 8... Kxd8 {[%clk 0:03:04.9]} 9. Nc3 {[%clk 0:02:54.4]} 9... Ke8
{[%clk 0:03:04.5]} 10. Bf4 {[%clk 0:02:51.9]} 10... h5 {[%clk 0:03:05.1]} 11. h3
{[%clk 0:02:50.3]} 11... Be6 {[%clk 0:03:05.7]} 12. a3 {[%clk 0:02:43.9]} 12...
Be7 {[%clk 0:03:06.3]} 13. Ng5 {[%clk 0:02:37.5]} 13... h4 {[%clk 0:03:04.3]}
14. Rfe1 {[%clk 0:02:27.1]} 14... Rh5 {[%clk 0:02:56.9]} 15. Nxe6 {[%clk
0:02:24.4]} 15... fxe6 {[%clk 0:02:57.8]} 16. Rad1 {[%clk 0:02:19.5]} 16... Rd8
{[%clk 0:02:57.6]} 17. Rxd8+ {[%clk 0:02:18.9]} 17... Bxd8 {[%clk 0:02:58.5]}
18. Ne2 {[%clk 0:02:06.9]} 18... Be7 {[%clk 0:02:49.5]} 19. b4 {[%clk
0:02:02.9]} 19... c5 {[%clk 0:02:40.5]} 20. c3 {[%clk 0:02:01.2]} 20... cxb4
{[%clk 0:02:39.3]} 21. axb4 {[%clk 0:02:01.8]} 21... Kd7 {[%clk 0:02:36]} 22.
Bd2 {[%clk 0:01:38.7]} 22... Rh8 {[%clk 0:02:01.7]} 23. Nf4 {[%clk 0:01:28.3]}
23... Bg5 {[%clk 0:01:40.2]} 24. Rd1 {[%clk 0:01:14.7]} 24... Bxf4 {[%clk
0:01:39.5]} 25. Bxf4+ {[%clk 0:01:15.6]} 25... Kc6 {[%clk 0:01:36.7]} 26. c4
{[%clk 0:01:13.5]} 26... a6 {[%clk 0:01:36.9]} 27. Bg5 {[%clk 0:00:59.6]} 27...
b6 {[%clk 0:01:23.7]} 28. Ra1 {[%clk 0:00:46.4]} 28... Ra8 {[%clk 0:01:19.5]}
29. b5+ {[%clk 0:00:37.3]} 29... Kb7 {[%clk 0:01:10.8]} 30. Kf1 {[%clk
0:00:30.5]} 30... a5 {[%clk 0:01:04.8]} 31. Ra4 {[%clk 0:00:22.8]} 31... Rf8
{[%clk 0:00:56.2]} 32. Ke1 {[%clk 0:00:12.2]} 32... Rf7 {[%clk 0:00:51.1]} 33.
c5 {[%clk 0:00:11.9]} 33... bxc5 {[%clk 0:00:50.3]} 34. Rxa5 {[%clk 0:00:12.4]}
34... Kb6 {[%clk 0:00:50.2]} 35. Ra6+ {[%clk 0:00:12.5]} 35... Kxb5 {[%clk
0:00:48.6]} 36. Rxe6 {[%clk 0:00:13.4]} 36... Nd4 {[%clk 0:00:40]} 37. Re8
{[%clk 0:00:13.1]} 37... Rf5 {[%clk 0:00:37.4]} 38. f4 {[%clk 0:00:11.3]} 38...
Kc6 {[%clk 0:00:26.7]} 39. e6 {[%clk 0:00:04.1]} 39... Nb5 {[%clk 0:00:13.4]}
40. e7 {[%clk 0:00:04]} 40... Nd6 {[%clk 0:00:14]} 41. Rf8 {[%clk 0:00:03.3]}
41... Rd5 {[%clk 0:00:07.1]} 42. e8=Q+ {[%clk 0:00:03.8]} 42... Nxe8 {[%clk
0:00:07.8]} 43. Rxe8 {[%clk 0:00:04.7]} 43... c4 {[%clk 0:00:08.6]} 44. Re4
{[%clk 0:00:04.6]} 44... Kb5 {[%clk 0:00:08.9]} 45. Bxh4 {[%clk 0:00:05]} 45...
c3 {[%clk 0:00:09.2]} 46. Re7 {[%clk 0:00:02.4]} 46... c2 {[%clk 0:00:05.7]} 47.
Rxc7 {[%clk 0:00:01.8]} 47... Rd1+ {[%clk 0:00:02.8]} 48. Ke2 {[%clk 0:00:02.2]}
48... c1=Q {[%clk 0:00:03.7]} 49. Rxc1 {[%clk 0:00:02.6]} 49... Rxc1 {[%clk
0:00:04.6]} 50. f5 {[%clk 0:00:02.6]} 50... Kc6 {[%clk 0:00:03.8]} 51. f6 {[%clk
0:00:02.3]} 51... gxf6 {[%clk 0:00:04.1]} 52. Bxf6 {[%clk 0:00:03.1]} 52... Kd5
{[%clk 0:00:04.5]} 53. Bg5 {[%clk 0:00:02.4]} 53... Rc2+ {[%clk 0:00:04.5]} 54.
Bd2 {[%clk 0:00:03]} 54... Ke4 {[%clk 0:00:04.7]} 55. g4 {[%clk 0:00:03.7]}
55... Ra2 {[%clk 0:00:04.6]} 56. h4 {[%clk 0:00:04.1]} 56... Ra3 {[%clk
0:00:04.8]} 57. h5 {[%clk 0:00:03.9]} 57... Rh3 {[%clk 0:00:05.3]} 58. h6 {[%clk
0:00:03.4]} 58... Rh2+ {[%clk 0:00:05.9]} 59. Ke1 {[%clk 0:00:03.7]} 59... Kf3
{[%clk 0:00:05.8]} 60. Kd1 {[%clk 0:00:02.3]} 60... Kxg4 {[%clk 0:00:06]} 61.
Kc2 {[%clk 0:00:03.2]} 61... Kf5 {[%clk 0:00:06.3]} 62. Kc3 {[%clk 0:00:04.1]}
62... Ke4 {[%clk 0:00:06.9]} 63. Bc1 {[%clk 0:00:04]} 63... Rh3+ {[%clk
0:00:07.4]} 64. Kc4 {[%clk 0:00:04.2]} 64... Rh1 {[%clk 0:00:07.8]} 65. Bg5
{[%clk 0:00:04.1]} 65... Kf5 {[%clk 0:00:08.3]} 66. Bd2 {[%clk 0:00:04.1]} 66...
Ke4 {[%clk 0:00:08.5]} 67. Bg5 {[%clk 0:00:04.1]} 67... Rh5 {[%clk 0:00:08.9]}
68. Bd2 {[%clk 0:00:04.2]} 68... Rh2 {[%clk 0:00:08.9]} 69. Bg5 {[%clk
0:00:04.2]} 69... Rc2+ {[%clk 0:00:09.3]} 70. Kb3 {[%clk 0:00:04.1]} 70... Rc7
{[%clk 0:00:09.7]} 71. Bf6 {[%clk 0:00:04.2]} 71... Rb7+ {[%clk 0:00:06.6]} 72.
Kc4 {[%clk 0:00:03.7]} 72... Kf5 {[%clk 0:00:06.3]} 73. Bg7 {[%clk 0:00:03.8]}
73... Kg6 {[%clk 0:00:07]} 74. Kd5 {[%clk 0:00:04.5]} 74... Rf7 {[%clk
0:00:07.3]} 75. Ke5 {[%clk 0:00:05]} 75... Rf1 {[%clk 0:00:07.9]} 76. Ke6 {[%clk
0:00:05.3]} 76... Re1+ {[%clk 0:00:08.2]} 77. Kd5 {[%clk 0:00:06]} 77... Rh1
{[%clk 0:00:09.1]} 78. Kd6 {[%clk 0:00:06.5]} 78... Kf7 {[%clk 0:00:09.6]} 79.
Ke5 {[%clk 0:00:06.1]} 79... Re1+ {[%clk 0:00:09.8]} 80. Kf5 {[%clk 0:00:06.4]}
80... Rf1+ {[%clk 0:00:09.8]} 81. Kg5 {[%clk 0:00:06.6]} 81... Kg8 {[%clk
0:00:10.2]} 82. Kg6 {[%clk 0:00:07.1]} 82... Rg1+ {[%clk 0:00:10.3]} 83. Kf5
{[%clk 0:00:07.5]} 83... Kh7 {[%clk 0:00:10.9]} 84. Kf6 {[%clk 0:00:08]} 84...
Rg2 {[%clk 0:00:11.3]} 85. Kf7 {[%clk 0:00:08]} 85... Rf2+ {[%clk 0:00:11.8]}
86. Ke7 {[%clk 0:00:07.8]} 86... Kg6 {[%clk 0:00:12.4]} 87. Kd6 {[%clk
0:00:08.7]} 87... Rh2 {[%clk 0:00:12.6]} 88. Ke6 {[%clk 0:00:09.1]} 88... Re2+
{[%clk 0:00:12.4]} 89. Kd6 {[%clk 0:00:09.4]} 89... Re1 {[%clk 0:00:13.3]} 90.
Kd7 {[%clk 0:00:09.5]} 90... Kf7 {[%clk 0:00:13.3]} 91. Kc6 {[%clk 0:00:06.6]}
91... Rh1 {[%clk 0:00:12.1]} 92. Kd5 {[%clk 0:00:06.7]} 92... Rh5+ {[%clk
0:00:12.4]} 93. Ke4 {[%clk 0:00:06.8]} 93... Ke6 {[%clk 0:00:13]} 94. Kf4 {[%clk
0:00:07.1]} 94... Kf7 {[%clk 0:00:13.5]} 95. Kg4 {[%clk 0:00:07.5]} 95... Kg6
{[%clk 0:00:14.1]} 96. Kf4 {[%clk 0:00:06.4]} 96... Rh4+ {[%clk 0:00:14.5]} 97.
Ke5 {[%clk 0:00:06.6]} 97... Rh2 {[%clk 0:00:14.3]} 98. Ke6 {[%clk 0:00:06.9]}
98... Re2+ {[%clk 0:00:14.5]} 99. Kd6 {[%clk 0:00:07.3]} 99... Kf7 {[%clk
0:00:14.8]} 100. Kc5 {[%clk 0:00:04.7]} 100... Rd2 {[%clk 0:00:14.6]} 101. Kc4
{[%clk 0:00:04]} 101... Rd8 {[%clk 0:00:15]} 102. Kc5 {[%clk 0:00:03.6]} 102...
Rd7 {[%clk 0:00:14.6]} 103. Kc6 {[%clk 0:00:04.1]} 103... Rd1 {[%clk 0:00:14]}
104. Kc5 {[%clk 0:00:04.6]} 104... Rd2 {[%clk 0:00:14]} 105. Kc6 {[%clk
0:00:04.1]} 105... Rh2 {[%clk 0:00:11.6]} 106. Kc5 {[%clk 0:00:04.4]} 106... Ke6
{[%clk 0:00:11.9]} 107. Kc4 {[%clk 0:00:04.7]} 107... Kf5 {[%clk 0:00:12]} 108.
Kd5 {[%clk 0:00:05.1]} 108... Rd2+ {[%clk 0:00:11.7]} 109. Kc6 {[%clk
0:00:05.6]} 109... Ke6 {[%clk 0:00:11.7]} 110. h7 {[%clk 0:00:05.6]} 110... Rc2+
{[%clk 0:00:12]} 111. Kb5 {[%clk 0:00:05]} 111... Rh2 {[%clk 0:00:12.4]} 112.
h8=Q {[%clk 0:00:05.5]} 112... Rxh8 {[%clk 0:00:13.3]} 113. Bxh8 {[%clk
0:00:06.3]} 1/2-1/2

[Event "Early-Titled-Tuesday-Blitz-March-05-2024"]
[Site "Chess.com"]
[Date "2024.03.05"]
[Round "11"]
[White "SharapovEvgeny"]
[Black "PavelShkapenko"]
[Result "0-1"]
[WhiteElo "2554"]
[BlackElo "2746"]
[TimeControl "180+1"]
[EndTime "10:03:48 PST"]
[Termination "PavelShkapenko won by resignation"]

1. c4 {[%clk 0:03:00.1]} 1... e5 {[%clk 0:02:59.3]} 2. Nc3 {[%clk 0:03:00]} 2...
Bb4 {[%clk 0:02:59.8]} 3. g3 {[%clk 0:02:59.8]} 3... Bxc3 {[%clk 0:02:59.7]} 4.
dxc3 {[%clk 0:02:58.7]} 4... Ne7 {[%clk 0:03:00.2]} 5. Bg2 {[%clk 0:02:58.9]}
5... Nbc6 {[%clk 0:02:59.9]} 6. Nf3 {[%clk 0:02:59.2]} 6... O-O {[%clk
0:02:59.7]} 7. O-O {[%clk 0:02:59.2]} 7... d6 {[%clk 0:03:00.4]} 8. Ne1 {[%clk
0:02:59.3]} 8... Be6 {[%clk 0:02:57.9]} 9. b3 {[%clk 0:02:59.4]} 9... Qd7 {[%clk
0:02:58.6]} 10. Nc2 {[%clk 0:02:58.2]} 10... Bh3 {[%clk 0:02:58.8]} 11. Ne3
{[%clk 0:02:58.3]} 11... Bxg2 {[%clk 0:02:59.1]} 12. Kxg2 {[%clk 0:02:58.9]}
12... f5 {[%clk 0:02:59.7]} 13. Nd5 {[%clk 0:02:58.9]} 13... f4 {[%clk
0:02:59.5]} 14. f3 {[%clk 0:02:55.3]} 14... Nxd5 {[%clk 0:02:53.6]} 15. Qxd5+
{[%clk 0:02:53.1]} 15... Kh8 {[%clk 0:02:52.9]} 16. c5 {[%clk 0:02:41.3]} 16...
Ne7 {[%clk 0:02:47.1]} 17. Qxb7 {[%clk 0:02:35.8]} 17... d5 {[%clk 0:02:47.4]}
18. Qa6 {[%clk 0:02:30.3]} 18... Rf6 {[%clk 0:02:45.4]} 19. g4 {[%clk
0:02:26.9]} 19... Rxa6 {[%clk 0:02:44.7]} 0-1

[Event "Early-Titled-Tuesday-Blitz-March-05-2024"]
[Site "Chess.com"]
[Date "2024.03.05"]
[Round "11"]
[White "ReadySkate"]
[Black "Quattroporte300"]
[Result "1-0"]
[WhiteElo "2575"]
[BlackElo "2453"]
[TimeControl "180+1"]
[EndTime "10:04:20 PST"]
[Termination "ReadySkate won by resignation"]

1. d4 {[%clk 0:03:00.9]} 1... Nf6 {[%clk 0:02:57.3]} 2. c4 {[%clk 0:03:01.3]}
2... b6 {[%clk 0:02:57.8]} 3. Nc3 {[%clk 0:03:01.4]} 3... Bb7 {[%clk 0:02:58.4]}
4. f3 {[%clk 0:03:02]} 4... d5 {[%clk 0:02:57.2]} 5. cxd5 {[%clk 0:03:02.9]}
5... Nxd5 {[%clk 0:02:57.1]} 6. e4 {[%clk 0:03:03.5]} 6... Nxc3 {[%clk
0:02:55.3]} 7. bxc3 {[%clk 0:03:04.4]} 7... e5 {[%clk 0:02:55.7]} 8. Be3 {[%clk
0:03:04.3]} 8... exd4 {[%clk 0:02:55]} 9. cxd4 {[%clk 0:03:05.2]} 9... Bb4+
{[%clk 0:02:55.2]} 10. Kf2 {[%clk 0:03:05.8]} 10... O-O {[%clk 0:02:54.1]} 11.
Bd3 {[%clk 0:03:05.8]} 11... Nd7 {[%clk 0:02:50.3]} 12. Ne2 {[%clk 0:03:05.6]}
12... Qh4+ {[%clk 0:02:49.3]} 13. g3 {[%clk 0:03:02.9]} 13... Qh3 {[%clk
0:02:49.5]} 14. Nf4 {[%clk 0:03:00.9]} 14... Qh6 {[%clk 0:02:47.5]} 15. Nd5
{[%clk 0:03:00.2]} 15... Qd6 {[%clk 0:02:46.9]} 16. Bf4 {[%clk 0:03:00.3]} 16...
Qe6 {[%clk 0:02:28]} 17. Nxb4 {[%clk 0:02:58.5]} 17... c5 {[%clk 0:02:28]} 18.
d5 {[%clk 0:02:56.6]} 18... Qf6 {[%clk 0:02:26.1]} 19. Nc2 {[%clk 0:02:55.9]}
19... Ne5 {[%clk 0:02:24.4]} 20. Bxe5 {[%clk 0:02:55.1]} 20... Qxe5 {[%clk
0:02:24.3]} 21. Qd2 {[%clk 0:02:55.6]} 21... f5 {[%clk 0:02:24.3]} 22. Rhe1
{[%clk 0:02:53.5]} 22... fxe4 {[%clk 0:02:20.4]} 23. Bxe4 {[%clk 0:02:54.4]}
23... Rad8 {[%clk 0:02:11.2]} 24. Rad1 {[%clk 0:02:51.9]} 24... Rd6 {[%clk
0:02:03.1]} 25. Bxh7+ {[%clk 0:02:50.8]} 1-0

[Event "Early-Titled-Tuesday-Blitz-March-05-2024"]
[Site "Chess.com"]
[Date "2024.03.05"]
[Round "11"]
[White "ritanovikova"]
[Black "Happy1712Drummer"]
[Result "1-0"]
[WhiteElo "2198"]
[BlackElo "2281"]
[TimeControl "180+1"]
[EndTime "10:04:24 PST"]
[Termination "ritanovikova won by resignation"]

1. e4 {[%clk 0:02:58.3]} 1... c5 {[%clk 0:02:59.3]} 2. Nc3 {[%clk 0:02:59]} 2...
Nc6 {[%clk 0:02:59]} 3. d3 {[%clk 0:02:59.9]} 3... g6 {[%clk 0:02:59.4]} 4. Be3
{[%clk 0:03:00.7]} 4... d6 {[%clk 0:02:59]} 5. Qd2 {[%clk 0:03:01.2]} 5... Bg7
{[%clk 0:02:58.8]} 6. g3 {[%clk 0:03:01.5]} 6... e6 {[%clk 0:02:59]} 7. Bg2
{[%clk 0:03:02]} 7... Nge7 {[%clk 0:02:59.4]} 8. Bh6 {[%clk 0:03:01.8]} 8... O-O
{[%clk 0:02:59.1]} 9. h4 {[%clk 0:03:02.1]} 9... f5 {[%clk 0:02:47.9]} 10. h5
{[%clk 0:03:02.1]} 10... Bxh6 {[%clk 0:02:42]} 11. Qxh6 {[%clk 0:03:01.3]} 11...
Rf7 {[%clk 0:02:42.4]} 12. hxg6 {[%clk 0:03:01.4]} 12... Nxg6 {[%clk 0:02:42.6]}
13. Nf3 {[%clk 0:02:59.3]} 13... Nd4 {[%clk 0:02:29.5]} 14. O-O-O {[%clk
0:02:55.8]} 14... Nxf3 {[%clk 0:02:26.2]} 15. Bxf3 {[%clk 0:02:55.7]} 15... b5
{[%clk 0:02:06.2]} 16. exf5 {[%clk 0:02:53.4]} 16... exf5 {[%clk 0:02:06.1]} 17.
Bxa8 {[%clk 0:02:53.1]} 17... b4 {[%clk 0:02:05.3]} 18. Bd5 {[%clk 0:02:51.3]}
18... Ne5 {[%clk 0:01:59.6]} 19. Qxh7+ {[%clk 0:02:50.3]} 19... Kf8 {[%clk
0:01:58.4]} 20. Qh8+ {[%clk 0:02:47.5]} 20... Ke7 {[%clk 0:01:57]} 21. Qxd8+
{[%clk 0:02:47.7]} 21... Kxd8 {[%clk 0:01:56.7]} 22. Bxf7 {[%clk 0:02:47.6]} 1-0

[Event "Early-Titled-Tuesday-Blitz-March-05-2024"]
[Site "Chess.com"]
[Date "2024.03.05"]
[Round "11"]
[White "janhelmer03"]
[Black "margarita_2703"]
[Result "1-0"]
[WhiteElo "2398"]
[BlackElo "2378"]
[TimeControl "180+1"]
[EndTime "10:04:41 PST"]
[Termination "janhelmer03 won by resignation"]

1. Nf3 {[%clk 0:02:59.6]} 1... d5 {[%clk 0:02:49.2]} 2. e3 {[%clk 0:02:58.5]}
2... Nf6 {[%clk 0:02:49.2]} 3. c4 {[%clk 0:02:58.6]} 3... e6 {[%clk 0:02:49.1]}
4. Nc3 {[%clk 0:02:57.5]} 4... c5 {[%clk 0:02:47.8]} 5. cxd5 {[%clk 0:02:57.2]}
5... exd5 {[%clk 0:02:47.6]} 6. d4 {[%clk 0:02:57.3]} 6... a6 {[%clk 0:02:47.5]}
7. Be2 {[%clk 0:02:56.9]} 7... Nc6 {[%clk 0:02:47.5]} 8. O-O {[%clk 0:02:56.7]}
8... h6 {[%clk 0:02:46.7]} 9. b3 {[%clk 0:02:56.2]} 9... Be6 {[%clk 0:02:46.2]}
10. Bb2 {[%clk 0:02:56.3]} 10... Bd6 {[%clk 0:02:45.2]} 11. dxc5 {[%clk
0:02:56.7]} 11... Bxc5 {[%clk 0:02:45.5]} 12. Rc1 {[%clk 0:02:57.6]} 12... Bb4
{[%clk 0:02:44.7]} 13. Na4 {[%clk 0:02:56.7]} 13... O-O {[%clk 0:02:44]} 14. Nc5
{[%clk 0:02:54.6]} 14... Bxc5 {[%clk 0:02:41.6]} 15. Rxc5 {[%clk 0:02:55.5]}
15... Nd7 {[%clk 0:02:42]} 16. Rc1 {[%clk 0:02:51.2]} 16... Rc8 {[%clk 0:02:42]}
17. Bd3 {[%clk 0:02:44.3]} 17... Bg4 {[%clk 0:02:39.8]} 18. Bb1 {[%clk
0:02:27.2]} 18... Nce5 {[%clk 0:02:33.3]} 19. Qxd5 {[%clk 0:02:25.7]} 19...
Nxf3+ {[%clk 0:02:31.7]} 20. gxf3 {[%clk 0:02:24.6]} 20... Rxc1 {[%clk 0:02:31]}
21. Rxc1 {[%clk 0:02:22.9]} 21... Be6 {[%clk 0:02:29.4]} 22. Qd3 {[%clk
0:02:20.4]} 22... Qg5+ {[%clk 0:02:25.5]} 23. Kh1 {[%clk 0:02:20.1]} 23... f5
{[%clk 0:02:17.7]} 24. Rg1 {[%clk 0:02:19.1]} 1-0